Workbook

Sheet Presupuesto Aprobado-Ejec FEBR
A3: SERVICIO REGIONAL DE SALUD NORCENTRAL
A4: HOSPITAL REGIONAL UNIVERSITARIO JOSE MARIA CABRAL Y BAEZ
A6: Ejecución de Gasto y Aplicaciones financieras
D7: ENERO 2025 | E7: FEBRERO 2025 | F7: MARZO 2025 | G7: Abril 2025 | H7: MAYO 2025 | I7: Junio 2025 | J7: Julio 2025 | K7: Agosto 2025 | L7: SEPTEMBRE 2025 | M7: OCTUBRE 2025 | N7: NOVIEMBRE 2025 | O7: DICIEMBRE 2025 | P7: Total
A8: INGRESOS VS En ENERO RD$ 15,703,887.65 EN EL MES DE FEBRERO 2023 RD$15,683,931.47 | B8: INGRESOS VS EN RD$ | D8: 35,513,133.28 | E8: 34,277,972.69 | F8: 36,428,894.08 | G8: 41,539,690.61 | H8: 40,003,122.29 | I8: 24,539,139.13 | J8: 46,063,335.90 | K8: 34,564,078.16 | L8: 42,766,104.36 | M8: 47,867,194.76 | N8: 41,598,634.71 | O8: 63,463,278.58 | P8: =+D8+E8+F8+G8+H8+I8+J8+L8+M8+N8+O8+K8 -> 488,624,578.55
B9: INGRESOS FR EN RD$ | G9: 18,995,942.11 | H9: 9,595,217.48 | I9: 9,498,286.42 | J9: 9,498,402.31 | K9: 9,498,295.89 | L9: 9,498,470.91 | M9: 9,498,795.95 | N9: 9,498,646.91 | O9: 9,498,646.93 | P9: =+D9+E9+F9+G9+H9+I9+J9+K9+L9+M9+N9+O9 -> 95,080,704.91
B10: TOTAL | D10: =SUM(D8:D9) -> 35,513,133.28 | E10: =SUM(E8:E9) -> 34,277,972.69 | F10: 36,428,894.08 | G10: 60,535,632.72 | H10: 49,598,339.77 | I10: 34,037,425.55 | J10: =SUM(J8:J9) -> 55,561,738.21 | K10: 44,062,374.05 | L10: 52,264,575.27 | M10: 57,365,990.71 | N10: 51,097,281.62 | O10: 72,961,925.51 | P10: =+D10+E10+F10+G10+H10+I10+J10+K10+L10+M10+N10+O10 -> 583,705,283.46
A11: DETALLE | B11: Presupuesto Aprobado | C11: Presupuesto Modificado | D11: Gasto devengado
D12: ENERO 2025 | E12: 2025-02-01 | F12: 2025-03-01 | G12: 2025-04-01 | H12: 2025-05-01 | I12: 2025-06-01 | J12: 2025-07-01 | K12: 2025-08-01 | L12: 2025-09-01 | M12: 2025-10-01 | N12: 2025-11-01 | O12: 2025-12-01 | P12: Total
A13: 2 - GASTOS | D13: =D14+D20+D30+D56 -> 74,748,195.72 | E13: =E14+E20+E30+E56 -> 30,542,529.35 | F13: 22,907,997.45 | G13: 57,393,543.11 | H13: 35,151,251.10 | I13: 28,472,914.47 | J13: 47,193,341.08 | K13: 45,692,006.61 | L13: 43,778,172.69 | M13: 76,624,010.03 | N13: 44,677,486.56 | O13: 76,772,284.99 | P13: =+D13+E13+F13+G13+H13+I13+J13+K13+L13+M13+N13+O13 -> 583,953,733.16
A14: 2.1 - REMUNERACIONES Y CONTRIBUCIONES | B14: =SUM(B15:B19) -> 107,596,085.06 | D14: =SUM(D15:D19) -> 978,905.73 | E14: 962,905.73 | F14: 962,905.73 | G14: 21,551,472.68 | H14: 958,239.33 | I14: 167,000.00 | J14: 167,000.00 | K14: 167,000.00 | L14: 167,000.00 | M14: 20,465,916.86 | N14: 167,000.00 | O14: 1,072,656.29 | P14: =+D14+E14+F14+G14+H14+I14+J14+K14+L14+M14+N14+O14 -> 47,788,002.35 | Q14: =G14+H14+I14 -> 22,676,712.01 | R14: =Q14/B87 -> 4%
A15: 2.1.1 - REMUNERACIONES | B15: 59,029,227.33 | D15: 208,000.00 | E15: ='[1]CONS. FUENTES FINAN'!$J$27 -> 208,000.00 | F15: 208,000.00 | G15: 208,000.00 | H15: 208,000.00 | I15: 167,000.00 | J15: 167,000.00 | K15: 167,000.00 | L15: 167,000.00 | M15: 167,000.00 | N15: ='[2]CONS. FUENTES FINAN'!$J$27 -> 167,000.00 | O15: 646,599.68 | P15: 2,688,599.68
A16: 2.1.2 - SOBRESUELDOS | B16: 48,566,857.74 | D16: 770,905.73 | E16: ='[1]CONS. FUENTES FINAN'!$J$51 -> 754,905.73 | F16: 754,905.73 | G16: 21,343,472.68 | H16: 750,239.33 | M16: 20,298,916.86 | O16: 426,056.61 | P16: 45,099,402.67
A17: 2.1.3 - DIETAS Y GASTOS DE REPRESENTACIÓN | P17: 0
A18: 2.1.4 - GRATIFICACIONES Y BONIFICACIONES | P18: 0
A19: 2.1.5 - CONTRIBUCIONES A LA SEGURIDAD SOCIAL | P19: =+D19+E19+F19+G19+H19+I19+J19+K19+L19+M19+N19+O19 -> 0
A20: 2.2 - CONTRATACIÓN DE SERVICIOS | B20: =SUM(B21:B29) -> 22,688,840.11 | D20: =SUM(D21:D29) -> 1,350,671.25 | E20: 1,314,427.99 | F20: 2,437,587.56 | G20: =SUM(G21:G29) -> 911,252.57 | H20: 1,060,784.02 | I20: =SUM(I21:I29) -> 2,138,459.23 | J20: 4,005,290.53 | K20: 5,098,570.28 | L20: 1,495,355.15 | M20: 1,601,102.70 | N20: 1,853,015.28 | O20: 1,253,900.08 | P20: =+D20+E20+F20+G20+H20+I20+J20+K20+L20+M20+N20+O20 -> 24,520,416.64 | Q20: =G20+H20+I20 -> 4,110,495.82 | R20: =Q20/B87 -> 1%
A21: 2.2.1 - SERVICIOS BÁSICOS | B21: 2,678,888.17 | D21: 205,740.68 | E21: ='[1]CONS. FUENTES FINAN'!$J$88 -> 510,404.35 | F21: 211,197.89 | G21: 203,370.62 | H21: 197,696.32 | I21: 199,647.27 | J21: 204,146.60 | K21: 203,480.26 | L21: 203,480.26 | M21: 199,237.05 | N21: 209,490.58 | O21: 206,298.91 | P21: =+D21+E21+F21+G21+H21+I21+J21+K21+L21+M21+N21+O21 -> 2,754,190.79
A22: 2.2.2 - PUBLICIDAD, IMPRESIÓN Y ENCUADERNACIÓN | B22: 9,936,514.54 | D22: 64,752.50 | E22: ='[1]CONS. FUENTES FINAN'!$J$106 -> 1,976.50 | F22: 64,664.00 | G22: 15,340.00 | I22: 354.00 | J22: 1,799,005.82 | K22: 4,012.00 | L22: 59,000.00 | M22: 620,738.00 | N22: 133,871.00 | O22: 283.20 | P22: 2,763,997.02
A23: 2.2.3 - VIÁTICOS | B23: 658,768.75 | E23: ='[1]CONS. FUENTES FINAN'!$J$111 -> 0 | G23: 99,204.00 | H23: 72,800.00 | I23: 25,784.00 | J23: 20,200.00 | K23: 45,800.00 | L23: 45,800.00 | M23: 43,970.00 | N23: 42,900.00 | O23: 60,844.00 | P23: 457,302.00
A24: 2.2.4 - TRANSPORTE Y ALMACENAJE | B24: 188,782.64 | D24: 3,515.00 | E24: ='[1]CONS. FUENTES FINAN'!$J$116 -> 3,600.00 | I24: 3,600.00 | J24: 3,600.00 | K24: 9,256.59 | L24: 14,428.62 | M24: 23,211.83 | N24: 9,791.36 | O24: 22,581.18 | P24: 93,584.58
A25: 2.2.5 - ALQUILERES Y RENTAS | B25: 547,749.78 | D25: 32,910.20 | K25: 159,199.92 | N25: 159,119.92 | O25: 278,459.87 | P25: 629,689.91
A26: 2.2.6 - SEGUROS | B26: 22,679.11 | L26: 18,143.29 | P26: 18,143.29
A27: 2.2.7 - SERVICIOS DE CONSERVACIÓN, REPARACIONES MENORES E INSTALACIONES TEMPORALES | B27: 4,751,967.10 | D27: 346,443.03 | E27: ='[1]CONS. FUENTES FINAN'!$J$157 -> 147,891.33 | F27: 1,700,938.00 | G27: 161,050.00 | H27: 133,886.60 | I27: 1,131,514.89 | J27: 1,720,339.99 | K27: 3,677,398.73 | L27: 87,349.80 | M27: 563,299.98 | N27: 1,141,314.18 | O27: 389,961.26 | P27: 11,201,387.79
A28: 2.2.8 - OTROS SERVICIOS NO INCLUIDOS EN CONCEPTOS ANTERIORES | B28: 3,903,490.02 | D28: 697,309.84 | E28: ='[1]CONS. FUENTES FINAN'!$J$179 -> 650,555.81 | F28: 460,787.67 | G28: 432,287.95 | H28: 656,401.10 | I28: 777,559.07 | J28: 257,998.12 | K28: 999,422.78 | L28: 1,067,153.18 | M28: 150,645.84 | N28: 156,528.24 | O28: 295,471.66 | P28: =+D28+E28+F28+G28+H28+I28+J28+K28+L28+M28+N28+O28 -> 6,602,121.26
A29: 2.2.9 - OTRAS CONTRATACIONES DE SERVICIOS | P29: =+D29+E29+F29+G29+H29+I29+J29+K29+L29+M29+N29+O29 -> 0
A30: 2.3 - MATERIALES Y SUMINISTROS | B30: =SUM(B31:B39) -> 461,865,990.80 | D30: =SUM(D31:D39) -> 67,606,487.09 | E30: 26,804,671.63 | F30: 19,381,758.16 | G30: 33,412,266.16 | H30: 32,156,342.55 | I30: 24,803,761.00 | J30: 42,425,182.47 | K30: 32,310,259.38 | L30: 40,504,911.21 | M30: 53,182,713.74 | N30: 40,488,462.98 | O30: 73,253,867.62 | P30: =+D30+E30+F30+G30+H30+I30+J30+K30+L30+M30+N30+O30 -> 486,330,683.99 | Q30: =G30+H30+I30 -> 90,372,369.71 | R30: =Q30/B87 -> 15%
A31: 2.3.1 - ALIMENTOS Y PRODUCTOS AGROFORESTALES | B31: 35,171,508.23 | D31: 1,487,781.60 | E31: ='[1]CONS. FUENTES FINAN'!$J$213 -> 1,211,812.30 | F31: 1,851,480.30 | G31: 3,070,178.10 | H31: 539,046.75 | I31: 1,137,264.00 | J31: 4,317,211.14 | K31: 318,211.28 | L31: 735,339.20 | M31: 4,051,819.84 | N31: 2,986,722.91 | O31: 2,091,120.20 | P31: 23,797,987.62
A32: 2.3.2 - TEXTILES Y VESTUARIOS | B32: 340,506.33 | D32: 96,124.04 | E32: ='[1]CONS. FUENTES FINAN'!$J$225 -> 0 | F32: 3,000.00 | G32: 179,921.00 | H32: 18,206.50 | I32: 1,100.00 | L32: 2,770.00 | M32: 75,540.00 | P32: 376,661.54
A33: 2.3.3 - PRODUCTOS DE PAPEL, CARTÓN E IMPRESOS | B33: 3,253,384.64 | D33: 760,120.24 | E33: ='[1]CONS. FUENTES FINAN'!$J$232 -> 166,375.65 | F33: 433,763.34 | H33: 230,583.56 | I33: 417,625.06 | K33: 98,754.20 | L33: 615,842.77 | M33: 430,464.00 | N33: 707,595.16 | O33: 517,255.46 | P33: =+D33+E33+F33+G33+H33+I33+J33+K33+L33+M33+N33+O33 -> 4,378,379.44
A34: 2.3.4 - PRODUCTOS FARMACÉUTICOS | B34: 225,267,938.91 | D34: 27,102,768.00 | E34: ='[1]CONS. FUENTES FINAN'!$H$245 -> 14,689,580.00 | F34: 5,117,075.00 | G34: 14,607,091.70 | H34: 14,339,156.00 | I34: 6,500,965.00 | J34: 18,606,266.72 | K34: 15,992,208.50 | L34: 18,474,555.00 | M34: 18,979,957.02 | N34: 15,187,511.84 | O34: 24,066,845.16 | P34: 193,663,979.94
A35: 2.3.5 - PRODUCTOS DE CUERO, CAUCHO Y PLÁSTICO | B35: 5,945,617.63 | D35: 293,866.91 | F35: 227,394.99 | G35: 533,565.17 | H35: 206.10 | I35: 267,488.30 | J35: 482,603.10 | K35: 835,821.66 | L35: 11,705.01 | M35: 730,270.15 | O35: 109,020.19 | P35: 3,491,941.58
A36: 2.3.6 - PRODUCTOS DE MINERALES, METÁLICOS Y NO METÁLICOS | B36: 401,326.41 | F36: 146,270.27 | H36: 730.00 | I36: 6,026.26 | J36: 2,824.00 | L36: 13,659.00 | M36: 24,845.41 | N36: 11,487.78 | O36: 4,009.02 | P36: 209,851.74
A37: 2.3.7 - COMBUSTIBLES, LUBRICANTES, PRODUCTOS QUÍMICOS Y CONEXOS | B37: 80,470,011.93 | D37: 19,628,480.91 | E37: ='[1]CONS. FUENTES FINAN'!$H$286 -> 3,151,752.03 | F37: 7,038,786.56 | G37: 4,145,288.79 | H37: 6,477,867.34 | I37: 7,693,639.44 | J37: 11,401,629.60 | K37: 8,376,656.16 | L37: 10,424,974.51 | M37: 15,531,997.39 | N37: 10,512,666.61 | O37: 29,359,069.73 | P37: 133,742,809.07
A38: 2.3.8 - GASTOS QUE SE ASIGNARÁN DURANTE EL EJERCICIO (ART. 32 Y 33 LEY 423-06) | P38: 0
A39: 2.3.9 - PRODUCTOS Y ÚTILES VARIOS | B39: 111,015,696.73 | D39: 18,237,345.39 | E39: ='[1]CONS. FUENTES FINAN'!$H$308 -> 7,585,151.65 | F39: 4,563,987.70 | G39: 10,876,221.40 | H39: =10518546.3+32000 -> 10,550,546.30 | I39: 8,779,652.94 | J39: 7,614,647.91 | K39: 6,688,607.58 | L39: 10,226,065.72 | M39: 13,357,819.93 | N39: 11,082,478.68 | O39: 17,106,547.86 | P39: 126,669,073.06
A40: 2.4 - TRANSFERENCIAS CORRIENTES | P40: =+D40+E40+F40+G40+H40+I40+J40+K40+L40+M40+N40+O40 -> 0
A41: 2.4.1 - TRANSFERENCIAS CORRIENTES AL SECTOR PRIVADO | P41: 0
A42: 2.4.2 - TRANSFERENCIAS CORRIENTES AL GOBIERNO GENERAL NACIONAL | P42: 0
A43: 2.4.3 - TRANSFERENCIAS CORRIENTES A GOBIERNOS GENERALES LOCALES | P43: 0
A44: 2.4.4 - TRANSFERENCIAS CORRIENTES A EMPRESAS PÚBLICAS NO FINANCIERAS | P44: 0
A45: 2.4.5 - TRANSFERENCIAS CORRIENTES A INSTITUCIONES PÚBLICAS FINANCIERAS | C45: 0 | P45: 0
A46: 2.4.7 - TRANSFERENCIAS CORRIENTES AL SECTOR EXTERNO | C46: 0 | P46: 0
A47: 2.4.9 - TRANSFERENCIAS CORRIENTES A OTRAS INSTITUCIONES PÚBLICAS | C47: 0 | P47: 0
A48: 2.5 - TRANSFERENCIAS DE CAPITAL | C48: 0 | P48: 0
A49: 2.5.1 - TRANSFERENCIAS DE CAPITAL AL SECTOR PRIVADO | C49: 0 | P49: 0
A50: 2.5.2 - TRANSFERENCIAS DE CAPITAL AL GOBIERNO GENERAL NACIONAL | C50: 0 | P50: 0
A51: 2.5.3 - TRANSFERENCIAS DE CAPITAL A GOBIERNOS GENERALES LOCALES | C51: 0 | P51: 0
A52: 2.5.4 - TRANSFERENCIAS DE CAPITAL A EMPRESAS PÚBLICAS NO FINANCIERAS | C52: 0 | P52: 0
A53: 2.5.5 - TRANSFERENCIAS DE CAPITAL A INSTITUCIONES PÚBLICAS FINANCIERAS | C53: 0 | P53: 0
A54: 2.5.6 - TRANSFERENCIAS DE CAPITAL AL SECTOR EXTERNO | C54: 0 | P54: 0
A55: 2.5.9 - TRANSFERENCIAS DE CAPITAL A OTRAS INSTITUCIONES PÚBLICAS | B55: 0 | C55: 0 | P55: 0
A56: 2.6 - BIENES MUEBLES, INMUEBLES E INTANGIBLES | B56: =SUM(B57:B65) -> 16,957,046.76 | C56: =+C57+C58+C59+C60+C61+C62+C63+C64+C65 -> 0.00 | D56: =SUM(D57:D65) -> 4,812,131.65 | E56: 1,460,524.00 | F56: 125,746.00 | G56: 1,518,551.70 | H56: 975,885.20 | I56: 1,363,694.24 | J56: 595,868.08 | K56: 8,116,176.95 | L56: 1,610,906.33 | M56: 1,374,276.73 | N56: 2,169,008.30 | O56: 1,191,861.00 | P56: 25,314,630.18 | Q56: =G56+H56+I56 -> 3,858,131.14 | R56: =Q56/B87 -> 1%
A57: 2.6.1 - MOBILIARIO Y EQUIPO | B57: 4,193,168.68 | D57: 139,613.50 | E57: ='[1]CONS. FUENTES FINAN'!$H$337 -> 0 | F57: 36,226.00 | G57: 170,704.70 | H57: 975,885.20 | I57: 40,993.84 | J57: 109,975.00 | K57: 22,335.04 | L57: 111,176.48 | M57: 1,178,222.20 | N57: 33,612.30 | O57: 2,500.00 | P57: 2,821,244.26
A58: 2.6.2 - MOBILIARIO Y EQUIPO EDUCACIONAL Y RECREATIVO | P58: 0
A59: 2.6.3 - EQUIPO E INSTRUMENTAL, CIENTÍFICO Y LABORATORIO | B59: 4,162,412.64 | D59: 4,580,798.15 | E59: ='[1]CONS. FUENTES FINAN'!$H$357 -> 162,604.00 | F59: 51,920.00 | G59: 850,957.00 | I59: 402,120.40 | J59: 337,893.00 | K59: 8,086,407.91 | L59: 178,885.00 | M59: 165,276.46 | N59: 1,384,376.00 | O59: 669,001.00 | P59: 16,870,238.92
A60: 2.6.4 - VEHÍCULOS Y EQUIPO DE TRANSPORTE, TRACCIÓN Y ELEVACIÓN | P60: 0
A61: 2.6.5 - MAQUINARIA, OTROS EQUIPOS Y HERRAMIENTAS | B61: 1,779,225.48 | D61: 4,000.00 | F61: 37,600.00 | G61: 64,250.00 | I61: 55,300.00 | J61: 76,000.08 | K61: 7,434.00 | L61: 22,924.85 | M61: 30,778.07 | N61: 318,380.00 | P61: 616,667.00
A62: 2.6.6 - EQUIPOS DE DEFENSA Y SEGURIDAD | P62: 0
A63: 2.6.7 - ACTIVOS BIÓLOGICOS CULTIVABLES | P63: 0
A64: 2.6.8 - BIENES INTANGIBLES | B64: 6,822,239.97 | D64: 87,720.00 | E64: 1,297,920.00 | G64: 432,640.00 | I64: 865,280.00 | J64: 72,000.00 | L64: 1,297,920.00 | N64: 432,640.00 | O64: 520,360.00 | P64: 5,006,480.00
A65: 2.6.9 - EDIFICIOS, ESTRUCTURAS, TIERRAS, TERRENOS Y OBJETOS DE VALOR | P65: 0
A66: 2.7 - OBRAS | B66: =+B67+B68+B69+B70 -> 0 | P66: 0
A67: 2.7.1 - OBRAS EN EDIFICACIONES | D67: 0 | P67: 0
A68: 2.7.2 - INFRAESTRUCTURA | B68: 0 | D68: 0 | P68: 0
A69: 2.7.3 - CONSTRUCCIONES EN BIENES CONCESIONADOS | B69: 0 | D69: 0 | P69: 0
A70: 2.7.4 - GASTOS QUE SE ASIGNARÁN DURANTE EL EJERCICIO PARA INVERSIÓN (ART. 32 Y 33 LEY 423-06) | B70: 0 | C70: 0 | D70: 0 | P70: 0
A71: 2.8 - ADQUISICION DE ACTIVOS FINANCIEROS CON FINES DE POLÍTICA | B71: 0 | C71: 0 | D71: =+D72+D73 -> 0 | P71: 0
A72: 2.8.1 - CONCESIÓN DE PRESTAMOS | B72: 0 | C72: 0 | D72: 0 | P72: 0
A73: 2.8.2 - ADQUISICIÓN DE TÍTULOS VALORES REPRESENTATIVOS DE DEUDA | B73: 0 | C73: 0 | D73: 0 | P73: 0
A74: 2.9 - GASTOS FINANCIEROS | B74: 0 | C74: 0 | D74: 0 | P74: =+D74+E74+F74+G74+H74+I74+J74+K74+L74+M74+N74+O74 -> 0
A75: 2.9.1 - INTERESES DE LA DEUDA PÚBLICA INTERNA | B75: 0 | C75: 0 | D75: 0 | P75: =+D75+E75+F75+G75+H75+I75+J75+K75+L75+M75+N75+O75 -> 0
A76: 2.9.2 - INTERESES DE LA DEUDA PUBLICA EXTERNA | B76: 0 | C76: 0 | D76: 0 | P76: 0
A77: 2.9.4 - COMISIONES Y OTROS GASTOS BANCARIOS DE LA DEUDA PÚBLICA | B77: 0 | C77: 0 | D77: 0 | E77: 0 | F77: 0 | G77: 0 | H77: 0 | P77: 0
A78: 4 - APLICACIONES FINANCIERAS | B78: 0 | C78: 0 | D78: 0 | E78: 0 | F78: 0 | G78: 0 | H78: 0 | P78: 0
A79: 4.1 - INCREMENTO DE ACTIVOS FINANCIEROS | B79: 0 | C79: 0 | D79: 0 | E79: 0 | F79: 0 | G79: 0 | H79: 0 | P79: =+D79+E79+F79+G79+H79+I79+J79+K79+L79+M79+N79+O79 -> 0
A80: 4.1.1 - INCREMENTO DE ACTIVOS FINANCIEROS CORRIENTES | B80: 0 | C80: 0 | D80: 0 | E80: 0 | F80: 0 | G80: 0 | H80: 0 | P80: 0
A81: 4.1.2 - INCREMENTO DE ACTIVOS FINANCIEROS NO CORRIENTES | B81: 0 | C81: 0 | D81: 0 | E81: 0 | F81: 0 | G81: 0 | H81: 0 | P81: 0
A82: 4.2 - DISMINUCIÓN DE PASIVOS | B82: 0 | C82: 0 | D82: 0 | E82: 0 | F82: 0 | G82: 0 | H82: 0 | P82: 0
A83: 4.2.1 - DISMINUCIÓN DE PASIVOS CORRIENTES | B83: 0 | C83: 0 | D83: 0 | E83: 0 | F83: 0 | G83: 0 | H83: 0 | P83: 0
A84: 4.2.2 - DISMINUCIÓN DE PASIVOS NO CORRIENTES | B84: 0 | D84: 0 | E84: 0 | F84: 0 | G84: 0 | H84: 0 | P84: 0
A85: 4.3 - DISMINUCIÓN DE FONDOS DE TERCEROS | B85: 0 | C85: 0 | D85: 0 | E85: 0 | F85: 0 | G85: 0 | H85: 0 | P85: 0
A86: 4.3.5 - DISMINUCIÓN DEPÓSITOS FONDOS DE TERCEROS | C86: 0 | D86: 0 | E86: 0 | F86: 0 | G86: 0 | P86: 0
A87: Total general | B87: =+B14+B20+B30+B40+B56+B66 -> 609,107,962.73 | C87: =+C14+C20+C30+C40+C56+C66 -> 0 | D87: =+D14+D20+D30+D40+D56 -> 74,748,195.72 | E87: =+E14+E20+E30+E40+E56+E66 -> 30,542,529.35 | F87: 22,907,997.45 | G87: 57,393,543.11 | H87: 35,151,251.10 | I87: 28,472,914.47 | J87: 47,193,341.08 | K87: 45,692,006.61 | L87: 43,778,172.69 | M87: 76,624,010.03 | N87: 44,677,486.56 | O87: 76,772,284.99 | P87: =+D87+E87+F87+G87+H87+I87+J87+K87+L87+M87+N87+O87 -> 583,953,733.16
A89: Presupuesto aprobado: Se refiere al presupuesto aprobado en la Ley de Presupuesto General del Estado.
A90: Presupuesto modificado: Se refiere al presupuesto aprobado en caso de que el Congreso Nacional apruebe un presupuesto complementario. | C90: REALIZADO POR: | I90: REVISADO POR: | M90: APROBADO POR:
A91: Total devengado: Son los recursos financieros que surgen con la obligación de pago por la recepción de conformidad de obras, bienes y servicios oportunamente contratados o, en los casos de gastos sin contraprestación, por haberse cumplido los requisitos administrativos dispuestos por el reglamento de la presente Ley. | C91: LIC. YENIFFER CASTILLO | I91: LIC. Adriano Miguel Ureña | M91: DR. JOSE LUIS BAUTISTA
C92: ENC. DEPTO. DE CONTABILIDAD | I92: ADMINISTRADOR | M92: DIRECTOR GENERAL

Sheet INGRESOS DE VS Y FR
A1: Establecimiento | B1: INGRESOS VS
A2: SANTIAGO | B2: 2024-01-01 | C2: 2024-02-01 | D2: 2024-03-01 | E2: 2024-04-01 | F2: 2024-05-01 | G2: 2024-06-01 | H2: 2024-07-01 | I2: 2024-08-01 | J2: 2024-09-01 | K2: 2024-10-01 | L2: 2024-11-01 | M2: 2024-12-01 | N2: TOTAL DEL 2024
A3: SERV. REGIONAL DE SALUD NORCENTRAL II | N3: =SUM(B3:M3) -> 0
A4: Hospital Regional Universitario José María Cabral y Báez | B4: 35,513,133.28 | C4: 34,277,972.69 | D4: 36,428,894.08 | E4: 41,657,879.60 | F4: 40,003,122.29 | G4: 24,539,139.13 | H4: 46,063,335.90 | I4: 46,063,335.90 | J4: 52,264,575.27 | N4: =SUM(B4:M4) -> 356,811,388.14
A5: Hospital Infantil Regional Dr. Arturo Grullón | N5: =SUM(B5:M5) -> 0
A6: Unidad de Niños Quemados Dra. Thelma Rosario | N6: 0
A7: Hospital Municipal Licey al Medio | N7: 0
A8: Centro de Atención Integral Bella Vista | N8: 0
A9: Hospital Municipal de Tamboril | N9: 0
A10: Hospital Napier Díaz (Villa González) | N10: 0
A11: Hospital Municipal de Sabana Iglesia | N11: 0
A12: Hospital Municipal de Jánico | N12: 0
A13: Hospital Muncipal de San José de las Matas | N13: 0
A14: Hospital Dr. Rafael Castro | N14: 0
A15: Hospital Periférico Ensanche Libertad | N15: 0
A16: Hospital Periférico Monte Adentro | N16: 0
A17: Hospital Municipal de Navarrete | N17: 0
A18: Centro Especializado Juan XXIII | N18: 0
A19: Hospital Municipal de Hato del Yaque | N19: 0
A20: Hospital Municipal Antonio Fernández (Baitoa) | N20: 0
A21: Hospital Presidente Estrella Ureña | N21: 0
A22: PUERTO PLATA | N22: 0
A23: Hospital Ricardo Limardo | N23: 0
A24: Hospital Dolores de la Cruz Montellano (no tienen vs) | N24: 0
A25: Hospital Pablo Morrobel Jimenez Luperón | N25: 0
A26: Hospital Municipal de Imbert | N26: 0
A27: Hospital Municipal de Altamira | N27: 0
A28: Hospital Dr. Rafael Cantisano Arias (Los Hidalgos) | N28: 0
A29: Centro Sanitario Dr. Francisco González Hardy (no tienen vs ) | N29: 0
A30: Hospital Municipal de Villa Isabela | N30: 0
A31: Hospital Municipal de Guananico | N31: 0
N32: 0
A33: ESPAILLAT | N33: 0
A34: Hospital Provincial Toribio Bencosme | N34: 0
A35: Hospital Municipal Manuel de Luna Gaspar Hernández | N35: 0
A36: Hospital Dr. Rafael Gutiérrez Sánchez Cayetano Germosén | N36: 0
A37: Hospital Municipal José Contreras Villa Trina | N37: 0
A38: Hospital Municipal Jamao al Norte | N38: 0
A39: TOTAL INGRESOS RECIBIDOS VS | N39: =SUM(B39:M39) -> 0
